Workbook

Sheet Portföljanalys
A1: Portföljanalys | G1: Total kostnad för konton | J1: =SUM(G6:G8) -> 18,770.00 kr
G2: Kontovärden | J2: =SUM(I6:I8) -> 19,553.50 kr
A3: =TODAY() -> 4112800.00% | G3: Orealiserad vinst/förlust kr | J3: =J2-J1 -> 783.50 kr
G4: Orealiserad vinst/förlust % | J4: =(J2/J1)-100% -> 4.17%
A5: Värdepapper | B5: Kontonamn eller -nr | C5: Symbol | D5: Antal | E5: Köpkurs per aktie | F5: Avgifter | G5: Total kostnad (Köpsumma + avgifter) | H5: Aktuell kurs | I5: Marknadsvärde | J5: Vinst/förl. (kr) | K5: Vinst/förl. (%)
A6: A Datum Corporation | B6: Woodgrove Bank | C6: AAAA | D6: 100 | E6: 49.00 kr | F6: 29.00 kr | G6: =(Tabell1[Antal]*Tabell1[Köpkurs per aktie])+Tabell1[Avgifter] -> 4,929.00 kr | H6: 56.99 kr | I6: =Tabell1[Antal]*Tabell1[Aktuell kurs] -> 5,699.00 kr | J6: =Tabell1[Marknadsvärde]-Tabell1[Total kostnad (köpsumma + avgifter)] -> 770.00 kr | K6: =IF(ISERR(Tabell1[Marknadsvärde]/Tabell1[Total kostnad (köpsumma + avgifter)]),"",(Tabell1[Marknadsvärde]/Tabell1[Total kostnad (köpsumma + avgifter)])-100%) -> 15.62%
A7: Adventure Works | B7: Woodgrove Bank | C7: AWAW | D7: 250 | E7: 21.56 kr | F7: 13.00 kr | G7: =(Tabell1[Antal]*Tabell1[Köpkurs per aktie])+Tabell1[Avgifter] -> 5,403.00 kr | H7: 19.13 kr | I7: =Tabell1[Antal]*Tabell1[Aktuell kurs] -> 4,782.50 kr | J7: =Tabell1[Marknadsvärde]-Tabell1[Total kostnad (köpsumma + avgifter)] -> -620.50 kr | K7: =IF(ISERR(Tabell1[Marknadsvärde]/Tabell1[Total kostnad (köpsumma + avgifter)]),"",(Tabell1[Marknadsvärde]/Tabell1[Total kostnad (köpsumma + avgifter)])-100%) -> -11.48%
A8: Wingtip Toys | B8: Woodgrove Bank | C8: WWTT | D8: 1200 | E8: 7.01 kr | F8: 26.00 kr | G8: =(Tabell1[Antal]*Tabell1[Köpkurs per aktie])+Tabell1[Avgifter] -> 8,438.00 kr | H8: 7.56 kr | I8: =Tabell1[Antal]*Tabell1[Aktuell kurs] -> 9,072.00 kr | J8: =Tabell1[Marknadsvärde]-Tabell1[Total kostnad (köpsumma + avgifter)] -> 634.00 kr | K8: =IF(ISERR(Tabell1[Marknadsvärde]/Tabell1[Total kostnad (köpsumma + avgifter)]),"",(Tabell1[Marknadsvärde]/Tabell1[Total kostnad (köpsumma + avgifter)])-100%) -> 7.51%
A9: Summa | G9: =SUBTOTAL(109,Tabell1[Total kostnad (köpsumma + avgifter)]) -> 18,770.00 kr | I9: =SUBTOTAL(109,Tabell1[Marknadsvärde]) -> 19,553.50 kr | J9: =SUBTOTAL(109,Tabell1[Vinst/förl. (kr)]) -> 783.50 kr | K9: =Tabell1[[#Totals],[Marknadsvärde]]/Tabell1[[#Totals],[Total kostnad (köpsumma + avgifter)]]-100% -> 4.17%
